bitfinex-derivatives/quotes_ETHF0:USTF0_20250322
["timestamp","ask_amount","ask_price","bid_price","bid_amount"]
[1742663929210,2.36459,1992.4,1992.3,2.95251]
[1742663930112,1.3605,1992.4,1992.3,2.95251]
[1742663932007,2.36459,1992.4,1992.3,2.95251]
[1742663932907,2.36459,1992.4,1992.3,1.9484]
[1742663933700,1.00424,1992.1,1992.0,4.21208]
[1742663934001,1.00424,1992.1,1992.0,3.2078]
[1742663934605,2.28644,1992.1,1992.0,3.2078]
[1742663935512,2.28644,1992.1,1992.0,4.21209]
[1742663935704,2.28644,1992.1,1992.0,3.2078]
[1742663936210,2.28644,1992.1,1992.0,4.5408]
[1742663937007,2.28644,1992.1,1992.0,5.54509]
[1742663937311,2.28644,1992.1,1992.0,2.33729]
[1742663937508,2.28644,1992.1,1992.0,1.333]
[1742663940219,1.2822,1992.1,1991.8,1.00436]
[1742663940513,1.00436,1991.9,1991.8,2.29336]
[1742663940814,1.00434,1991.9,1991.8,2.29335]
[1742663943315,1.00439,1991.8,1991.7,2.33441]
[1742663943509,1.00439,1991.8,1991.6,3.25153674]
[1742663943510,1.00444,1991.7,1991.6,0.00753674]
[1742663944215,1.00454,1991.5,1991.4,2.30909]
[1742663944412,1.66723,1991.6,1991.5,1.00454]
[1742663944606,1.00454,1991.5,1991.4,1.69966]
[1742663944808,2.31374,1991.5,1991.4,1.69966]
[1742663945417,1.3092,1991.5,1991.4,1.69966]
[1742663949925,2.31374,1991.5,1991.4,1.69966]
[1742663950718,2.31374,1991.5,1991.4,0.6951]
[1742663950913,1.00459,1991.4,1991.3,3.85463674]
[1742663951117,2.35549,1991.4,1991.3,0.00753674]
[1742663951717,5.56329,1991.4,1991.3,0.00753674]
[1742663953419,2.35549,1991.4,1991.3,0.00753674]
[1742663954020,5.56329,1991.4,1991.3,0.00753674]
[1742663955235,2.51181,1991.2,1990.6,52.13119]
[1742663955422,1.00487,1990.9,1990.8,1.00487]
[1742663955618,1.00483,1991.0,1990.9,1.00483]
[1742663955925,1.00481,1991.0,1990.9,1.00481]
[1742663958023,0.6715,1991.1,1991.0,1.0048]
[1742663958228,3.243,1991.2,1991.1,1.00475]
[1742663958424,4.2477,1991.2,1991.1,1.00475]
[1742663959127,4.2477,1991.2,1991.1,3.00275]
[1742663960133,4.2477,1991.2,1991.1,1.998]
[1742663961730,4.2477,1991.2,1991.1,3.00275]
[1742663962028,4.2477,1991.2,1991.1,1.998]
[1742663962227,4.2477,1991.2,1991.1,3.00275]
[1742663962430,4.2477,1991.2,1991.1,1.998]
[1742663965229,4.2477,1991.2,1991.1,3.00275]
[1742663965932,4.2477,1991.2,1991.1,1.998]
[1742663967533,4.2477,1991.2,1991.1,3.00275]
[1742663967727,4.2477,1991.2,1991.1,1.998]
[1742663968327,4.2477,1991.2,1991.1,3.00275]
[1742663970429,1.0047,1991.2,1991.1,3.00275]
[1742663970627,4.529,1991.3,1991.2,1.0047]
[1742663970933,4.529,1991.3,1991.2,2.3249]
[1742663971836,1.0047,1991.2,1991.1,1.65861]
[1742663972029,2.3142,1991.2,1991.1,2.97881]
[1742663976933,3.0019,1991.2,1991.1,2.97881]
[1742663977237,3.0019,1991.2,1991.0,1.69566]
[1742663977238,1.00475,1991.1,1991.0,1.69566]
[1742663977435,2.35835,1991.1,1991.0,3.00326]
[1742663978831,2.35835,1991.1,1991.0,0.6909]
[1742663979032,1.00485,1990.9,1990.8,1.01239674]
[1742663979233,1.00485,1990.9,1990.8,3.00679674]
[1742663979729,2.37725,1990.9,1990.8,3.00679674]
[1742663980539,2.37725,1990.9,1990.8,2.00193674]
[1742663981839,2.37725,1990.9,1990.8,3.00683674]
[1742663982832,2.37725,1990.9,1990.8,1.71263674]
[1742663983841,2.37725,1990.9,1990.8,0.00753674]
[1742663984040,3.01605,1990.9,1990.8,0.00753674]
[1742663985240,3.01605,1990.9,1990.8,1.01243674]
[1742663986742,3.01605,1990.9,1990.8,0.00753674]
[1742663989140,6.23705,1990.9,1990.8,0.00753674]
[1742663994649,6.23705,1990.9,1990.8,1.01243674]
[1742663994851,6.23705,1990.9,1990.8,0.00753674]
[1742663995343,6.23705,1990.9,1990.8,1.38003674]
[1742663998749,6.23705,1990.9,1990.8,0.00753674]
[1742664004056,6.23705,1990.9,1990.8,1.37833674]
[1742664004355,5.59825,1990.9,1990.8,1.37833674]
[1742664006250,4.5934,1990.9,1990.8,2.38323674]
[1742664006847,5.59825,1990.9,1990.8,2.38323674]
[1742664007851,2.37725,1990.9,1990.8,2.38323674]
[1742664009052,2.37725,1990.9,1990.8,1.37833674]
[1742664009256,2.37725,1990.9,1990.8,2.38323674]
[1742664012459,2.37725,1990.9,1990.8,1.37833674]
[1742664014457,2.37725,1990.9,1990.8,2.38323674]
[1742664016572,2.37725,1990.9,1990.8,0.00753674]
[1742664016772,5.58625,1990.9,1990.8,0.00753674]
[1742664017677,5.58625,1990.9,1990.5,2.28821]
[1742664017678,1.005,1990.6,1990.5,1.2832]
[1742664017862,2.5123,1990.8,1990.4,1.65918]
[1742664017863,1.00505,1990.5,1990.4,1.65918]
[1742664018064,2.30705,1990.5,1990.4,1.9391]
[1742664018374,1.0051,1990.4,1990.3,0.6668]
[1742664018673,2.3071,1990.4,1990.3,1.67195]
[1742664019076,2.3071,1990.4,1990.3,2.95695]
[1742664019572,2.3071,1990.4,1990.3,1.9518]
[1742664023274,1.00515,1990.3,1990.2,0.65912449]
[1742664023476,2.38465,1990.3,1990.2,0.65912449]
[1742664023775,2.38465,1990.3,1990.2,0.00502449]
[1742664024269,5.59565,1990.3,1990.2,0.00502449]
[1742664029776,5.59565,1990.3,1990.2,0.65652449]
[1742664029979,5.59565,1990.3,1990.2,1.95392449]
[1742664031277,5.59565,1990.3,1990.2,0.00502449]
[1742664044788,5.59565,1990.3,1990.2,0.66312449]
[1742664050192,4.5905,1990.3,1990.2,0.66312449]
[1742664050388,5.59565,1990.3,1990.2,1.33722449]
[1742664050693,5.59565,1990.3,1990.2,2.34242449]
[1742664050896,1.3795,1990.3,1990.2,2.34242449]
[1742664051292,3.20553674,1990.5,1990.4,1.0051]
[1742664051488,4.21058674,1990.5,1990.4,1.0051]
[1742664053198,1.0051,1990.4,1990.3,2.38951]
[1742664053491,2.4005,1990.4,1990.3,2.38951]
[1742664053797,2.4005,1990.4,1990.3,1.3844]
[1742664055099,2.4005,1990.4,1990.3,2.38955]
[1742664055896,2.4005,1990.4,1990.3,1.3844]
[1742664056693,1.00515,1990.3,1990.2,0.00502449]
[1742664056898,2.39305,1990.3,1990.2,0.00502449]
[1742664057103,5.59105,1990.3,1990.2,0.00502449]
[1742664058405,5.59105,1990.3,1990.2,2.28852449]
[1742664058997,5.59105,1990.3,1990.2,1.28332449]
[1742664061500,1.3879,1990.3,1990.2,2.28852449]
[1742664062003,3.20553674,1990.5,1990.4,1.0051]
[1742664062203,4.56653674,1990.5,1990.4,1.0051]
[1742664062403,5.57158674,1990.5,1990.4,1.0051]
[1742664062599,1.36853674,1990.5,1990.4,2.3701]
[1742664063508,0.00753674,1990.5,1990.4,2.3701]
[1742664063802,2.3074,1990.8,1990.7,1.00495]
[1742664064504,2.3074,1990.8,1990.7,2.34655]
[1742664064904,2.3074,1990.8,1990.7,1.3416]
[1742664065099,1.3025,1990.8,1990.7,2.34655]
[1742664065308,3.21153674,1990.9,1990.8,1.0049]
[1742664065501,0.00753674,1990.9,1990.8,2.3465]
[1742664065805,1.31003674,1990.9,1990.8,2.3465]
[1742664065993,3.2078,1991.4,1990.8,2.3465]
[1742664066198,3.2078,1991.4,1991.1,1.00471]
[1742664066199,4.21369,1991.3,1991.1,1.00471]
[1742664066400,4.21369,1991.3,1991.2,0.66]
[1742664066799,4.85699,1991.3,1991.2,0.66]
[1742664067002,1.00474,1991.2,1991.0,1.00476]
[1742664067300,2.37024,1991.2,1991.1,1.3273]
[1742664067907,4.21269,1991.3,1991.1,1.3273]
[1742664068199,2.37019,1991.3,1991.2,1.0047]
[1742664069300,2.37019,1991.3,1991.1,2.33201]
[1742664069502,2.3702,1991.2,1991.1,2.33201]
[1742664069705,2.3702,1991.2,1991.1,1.00471]
[1742664070299,2.3702,1991.2,1990.9,0.66]
[1742664070300,2.37024,1991.2,1990.9,0.66]
[1742664070502,2.35025,1991.1,1991.0,1.00475]
[1742664070697,1.3455,1991.1,1991.0,1.00475]
[1742664071191,1.0048,1991.0,1990.9,0.66]
[1742664071603,2.35028,1991.1,1991.0,1.0048]
[1742664071797,2.35028,1991.1,1990.9,1.66481]
[1742664072106,1.3455,1991.0,1990.9,1.66481]
[1742664072304,2.3503,1991.0,1990.9,0.66]
[1742664072499,1.0049,1990.8,1990.7,1.00491]
[1742664072804,1.0049,1990.8,1990.7,1.70581]
[1742664073003,1.00495,1990.7,1990.6,3.212]
[1742664073304,1.005,1990.6,1990.5,0.7009]
[1742664074504,2.3837,1990.6,1990.5,0.7009]
[1742664074707,2.3837,1990.6,1990.5,1.70595]
[1742664076909,1.3787,1990.6,1990.5,1.70595]
[1742664079113,2.3837,1990.6,1990.5,1.70595]
[1742664079315,1.3787,1990.6,1990.5,1.70595]
[1742664080320,2.3837,1990.6,1990.5,1.70595]
[1742664080805,2.3837,1990.6,1990.5,1.00505]
[1742664081115,1.00505,1990.5,1990.4,1.68465]
[1742664081311,2.30265,1990.5,1990.4,1.68465]
[1742664082108,1.2976,1990.5,1990.4,1.68465]
[1742664083506,2.30265,1990.5,1990.4,1.68465]
[1742664084306,2.30265,1990.5,1990.4,0.6796]
[1742664084513,2.30265,1990.5,1990.4,1.6847]
[1742664086315,1.2976,1990.5,1990.4,1.6847]
[1742664088215,1.2976,1990.5,1990.4,3.0015]
[1742664088513,2.30265,1990.5,1990.4,3.0015]
[1742664089120,2.30265,1990.5,1990.4,1.6847]
[1742664089713,2.30265,1990.5,1990.3,1.00513]
[1742664089714,1.0051,1990.4,1990.3,1.00513]
[1742664090022,1.00515,1990.3,1990.2,0.00502449]
[1742664090215,1.69365,1990.3,1990.2,0.00502449]
[1742664090416,2.97025,1990.3,1990.2,1.01022449]
[1742664093325,2.97025,1990.3,1990.2,0.00502449]
[1742664094518,6.17805,1990.3,1990.2,0.00502449]
[1742664097721,1.0053,1990.0,1989.8,3.8721]
[1742664097930,1.00532,1990.0,1989.9,1.00533]
[1742664098125,1.00532,1990.0,1989.9,2.33083]
[1742664100620,1.00532,1990.0,1989.9,1.3255]
[1742664101021,1.65362,1990.0,1989.9,1.3255]
[1742664102239,1.65362,1990.0,1989.9,2.33085]
[1742664103643,0.6483,1990.0,1989.9,2.33085]
[1742664104039,1.01280674,1990.1,1989.9,2.33085]
[1742664104235,1.01280674,1990.1,1990.0,1.3138]
[1742664104640,1.01280674,1990.1,1990.0,2.3191]
[1742664104840,1.01280674,1990.1,1990.0,1.3138]
[1742664107948,1.0053,1990.0,1989.9,1.00533]
[1742664108244,1.0053,1990.0,1989.9,2.33683]
[1742664108937,1.0053,1990.0,1989.9,1.3315]
[1742664109140,1.0053,1990.0,1989.9,2.33685]
[1742664109336,1.0053,1990.0,1989.9,1.3315]
[1742664109537,1.0053,1990.0,1989.9,2.33685]
[1742664115142,1.0053,1990.0,1989.9,1.3315]
[1742664115538,1.00535,1989.9,1989.8,0.67183674]
[1742664115738,1.00535,1989.9,1989.8,1.67723674]
[1742664115939,1.00535,1989.9,1989.8,3.02613674]
[1742664116335,1.00535,1989.9,1989.8,2.02073674]
[1742664116540,1.00535,1989.9,1989.8,3.02613674]
[1742664116748,4.20432,1990.0,1989.9,1.00535]
[1742664116944,4.2043,1990.0,1989.9,2.35425]
[1742664117544,4.22063674,1990.1,1990.0,1.0053]
[1742664117846,4.22063674,1990.1,1990.0,1.3489]
[1742664118449,2.28963674,1990.1,1990.0,1.3489]
[1742664118640,5.49743674,1990.1,1990.0,1.3489]
[1742664122645,1.0053,1990.0,1989.9,1.00532]
[1742664122853,2.3546,1990.0,1989.9,2.35122]
[1742664125858,2.3546,1990.0,1989.9,1.3459]
[1742664127064,1.3493,1990.0,1989.9,2.35125]
[1742664127557,2.3546,1990.0,1989.9,2.35125]
[1742664128957,49.6648,1990.8,1989.9,7.0409]
[1742664129257,1.2975,1990.2,1990.1,4.21305]
[1742664129451,1.2975,1990.2,1990.1,6.17255]
[1742664132558,0.00753674,1990.3,1990.2,1.0052]
[1742664133054,1.34843674,1990.3,1990.2,2.275]
[1742664142373,1.34843674,1990.3,1990.2,5.4828]
[1742664147198,1.34843674,1990.3,1990.2,2.275]
[1742664147906,1.34843674,1990.3,1990.2,5.4828]
[1742664150103,1.34843674,1990.3,1990.2,2.275]
[1742664150312,1.34843674,1990.3,1990.2,5.4828]
[1742664155187,1.34843674,1990.3,1990.2,2.275]
[1742664156815,0.6882,1990.6,1990.5,1.00505]
[1742664157390,0.6882,1990.6,1990.5,2.37165]
[1742664159884,1.9976,1990.6,1990.5,2.37165]
[1742664161791,1.9976,1990.6,1990.5,1.00505]
[1742664182091,1.9976,1990.6,1990.4,2.28346]
[1742664182092,1.00505,1990.5,1990.4,2.28346]
[1742664182298,2.29215,1990.5,1990.4,2.28346]
[1742664182900,1.2871,1990.5,1990.4,2.28346]
[1742664184400,3.19553674,1990.7,1990.6,1.005]
[1742664184601,0.00753674,1990.7,1990.6,1.005]
[1742664184900,0.00753674,1990.7,1990.6,1.6978]
[1742664185099,0.00753674,1990.7,1990.6,2.3503]
[1742664185903,0.00753674,1990.7,1990.6,3.6702]
[1742664189403,0.6657,1991.2,1990.8,2.51217]
[1742664189705,3.188,1991.3,1991.2,1.0047]
[1742664190007,1.2786,1991.3,1991.2,1.0047]
[1742664190399,1.2786,1991.3,1991.2,2.3417]
[1742664197108,0.00753674,1991.4,1991.3,1.00465]
[1742664197401,1.29593674,1991.4,1991.3,2.40625]
[1742664197711,2.30052674,1991.4,1991.3,2.40625]
[1742664198112,1.29593674,1991.4,1991.3,2.40625]
[1742664201107,2.30052674,1991.4,1991.3,2.40625]
[1742664201709,1.29593674,1991.4,1991.3,2.40625]
[1742664202915,2.30052674,1991.4,1991.3,2.40625]
[1742664204624,2.30052674,1991.4,1991.3,1.4016]
[1742664204920,1.00465,1991.3,1991.2,1.00466]
[1742664205120,2.99325,1991.3,1991.2,2.38596]
[1742664206608,2.99325,1991.3,1991.2,1.3813]
[1742664206808,1.0047,1991.2,1991.1,0.00753674]
[1742664207113,2.9744,1991.2,1991.1,0.00753674]
[1742664211221,1.9697,1991.2,1991.1,1.01228674]
[1742664211718,1.3006,1991.2,1991.1,1.01228674]
[1742664211922,2.3053,1991.2,1991.1,1.01228674]
[1742664212316,1.3006,1991.2,1991.1,2.37758674]
[1742664212819,2.3053,1991.2,1991.1,2.37758674]
[1742664214424,1.3006,1991.2,1991.1,2.37758674]
[1742664214718,2.3053,1991.2,1991.1,2.37758674]
[1742664216118,1.3006,1991.2,1991.1,2.37758674]
[1742664216960,2.3053,1991.2,1991.1,2.37758674]
[1742664219552,1.3006,1991.2,1991.1,2.37758674]
[1742664221157,7.40692674,1991.4,1991.3,1.00465]
[1742664221350,8.36109484,1991.4,1991.3,1.00465]
[1742664221757,5.17409484,1991.4,1991.3,1.00465]
[1742664221942,7.35650484,1991.4,1991.3,1.00465]
[1742664222450,8.68920484,1991.4,1991.3,1.00465]
[1742664223043,7.73503674,1991.4,1991.3,1.00465]
[1742664223236,8.73962674,1991.4,1991.3,1.00465]
[1742664224051,7.73503674,1991.4,1991.3,1.00465]
[1742664225052,8.73962674,1991.4,1991.3,1.00465]
[1742664231426,8.73966674,1991.4,1991.3,1.00465]
[1742664231831,7.73503674,1991.4,1991.3,1.00465]
[1742664232035,4.52723674,1991.4,1991.3,1.00465]
[1742664232230,0.00753674,1991.4,1991.3,1.00465]
[1742664234143,1.37813674,1991.4,1991.3,1.00465]
[1742664236036,0.00753674,1991.4,1991.3,1.00465]
[1742664236332,3.187,1991.9,1991.8,1.00439]
[1742664236541,3.26772174,1991.9,1991.8,1.00439]
[1742664236740,5.51156213,1992.0,1991.9,1.00434]
[1742664236933,4.21205,1992.1,1992.0,1.00429]
[1742664237135,4.29276545,1992.1,1991.8,1.2977]
[1742664237338,0.08071473,1992.0,1991.9,0.6918]
[1742664237527,0.08071473,1992.0,1991.9,1.69614]
[1742664238137,5.1307933,1992.1,1991.9,1.69614]
[1742664238337,5.1307933,1992.1,1992.0,1.00429]
[1742664238539,4.29779666,1992.1,1992.0,1.67939]
[1742664238741,4.29779666,1992.1,1992.0,0.6751]
[1742664238933,7.48479666,1992.1,1992.0,0.6751]
[1742664239334,4.29779666,1992.1,1992.0,1.67939]
[1742664239534,3.29354666,1992.1,1992.0,1.67939]
[1742664239840,3.2128245,1992.1,1992.0,1.67939]
[1742664240350,3.29354608,1992.1,1992.0,1.67939]
[1742664240740,3.2128245,1992.1,1992.0,1.67939]
[1742664241241,4.29778602,1992.1,1992.0,1.67939]
[1742664241441,4.29778602,1992.1,1992.0,0.6751]
[1742664241640,4.29778598,1992.1,1992.0,0.6751]
[1742664241844,4.29778598,1992.1,1992.0,1.67939]
[1742664242043,3.2128245,1992.1,1992.0,1.67939]
[1742664242445,3.29353876,1992.1,1992.0,1.67939]
[1742664243343,4.29778597,1992.1,1992.0,1.67939]
[1742664243939,0.08574597,1992.1,1992.0,1.67939]
[1742664244239,0.0050245,1992.1,1992.0,1.67939]
[1742664244739,0.08574501,1992.1,1992.0,1.67939]
[1742664244947,0.0050245,1992.1,1992.0,1.67939]
[1742664245745,0.08071986,1992.3,1992.2,1.00419]
[1742664245950,5.49386,1992.5,1992.3,1.00414]
[1742664246150,0.08071908,1992.4,1992.3,1.00414]
[1742664247153,0.6638,1992.5,1992.4,1.00409]
[1742664247560,0.0807162,1992.5,1992.4,1.00409]
[1742664247738,4.4945,1992.7,1992.3,6.40653]
[1742664247944,4.4945,1992.7,1992.6,1.00399]
[1742664248252,4.57521503,1992.7,1992.6,1.00399]
[1742664248547,5.8192,1992.7,1992.6,1.00399]
[1742664248748,2.07391479,1992.7,1992.6,1.00399]
[1742664248945,1.40541479,1992.7,1992.6,1.00399]
[1742664249349,1.40541479,1992.7,1992.6,1.69239]
[1742664249558,1.40541479,1992.7,1992.6,3.08049]
[1742664250257,0.08071479,1992.7,1992.6,3.08049]
[1742664250559,1.41429859,1992.9,1992.8,1.00389]
[1742664250754,1.4142985,1992.9,1992.8,1.00389]
[1742664251561,0.0806985,1992.9,1992.8,1.00389]
[1742664251761,1.3336,1993.0,1992.9,1.00384]
[1742664251951,1.41429637,1993.0,1992.9,1.69574]
[1742664252154,1.41429637,1993.0,1992.9,2.39724]
[1742664252459,1.3336,1993.0,1992.9,2.39724]
[1742664252649,1.41429266,1993.0,1992.9,2.39724]
[1742664255652,1.41429266,1993.0,1992.9,3.67024]
[1742664255853,0.08069266,1993.0,1992.9,3.67024]
[1742664256052,1.3864,1993.1,1993.0,1.00379]
[1742664256254,1.46711039,1993.1,1993.0,2.27679]
[1742664256557,0.08071039,1993.1,1993.0,2.27679]
[1742664256756,1.3864,1993.3,1993.2,1.00369]
[1742664256964,1.46710843,1993.3,1993.2,1.00369]
[1742664257360,0.08070843,1993.3,1993.2,1.00369]
[1742664257563,4.21129,1993.6,1993.2,1.273]
[1742664257761,1.46708824,1993.5,1993.4,1.00359]
[1742664257960,1.46708824,1993.5,1993.4,2.27659]
[1742664259066,1.46710579,1993.5,1993.4,2.27659]
[1742664259967,0.08070579,1993.5,1993.4,2.27659]
[1742664260168,1.3501,1993.6,1993.5,1.00354]
[1742664260362,1.43080469,1993.6,1993.5,1.00354]
[1742664260969,1.43080466,1993.6,1993.5,1.00354]
[1742664262371,1.43080466,1993.6,1993.4,1.00358]
[1742664262372,1.00355,1993.5,1993.4,1.00358]
[1742664262671,0.75198474,1993.5,1993.4,1.00358]
[1742664263179,2.08870452,1993.5,1993.4,1.00358]
[1742664263377,3.09224452,1993.5,1993.4,1.00358]
[1742664263680,3.09224452,1993.5,1993.4,2.29668]
[1742664263973,2.08870452,1993.5,1993.4,2.29668]
[1742664264168,3.09224452,1993.5,1993.4,2.29668]
[1742664264368,3.09224455,1993.5,1993.4,2.29668]
[1742664264565,2.08870455,1993.5,1993.4,2.29668]
[1742664264777,2.008,1993.5,1993.4,2.29668]
[1742664264977,2.08868343,1993.5,1993.4,2.29668]
[1742664265179,1.41738343,1993.5,1993.4,2.29668]
[1742664266069,0.08068343,1993.5,1993.4,2.29668]
[1742664266374,1.34770383,1993.6,1993.5,1.00354]
[1742664266571,1.34770362,1993.6,1993.5,1.00354]
[1742664267367,2.35119362,1993.6,1993.5,1.00354]
[1742664267579,2.35119319,1993.6,1993.5,1.00354]
[1742664268579,1.34770319,1993.6,1993.5,1.00354]
[1742664269378,1.34770319,1993.6,1993.5,2.29674]
[1742664269581,1.34770358,1993.6,1993.5,2.29674]
[1742664272077,1.267,1993.6,1993.5,2.29674]
[1742664272274,1.34770358,1993.6,1993.5,2.29674]
[1742664272476,1.34768047,1993.6,1993.5,2.29674]
[1742664273484,2.508,1994.2,1993.5,2.29674]
[1742664273485,3.2078,1994.1,1994.0,1.00328]
[1742664273679,1.2675,1994.2,1994.1,1.00323]
[1742664273876,1.2675,1994.2,1994.1,2.29623]
[1742664274294,1.2675,1994.2,1994.1,2.87381505]
[1742664274587,1.2675,1994.2,1994.1,2.87379033]
[1742664274987,1.2675,1994.2,1994.1,2.29623]
[1742664275687,1.34757519,1994.2,1994.1,2.29623]
[1742664276384,1.00325,1994.1,1994.0,1.00325]
[1742664276587,1.00328,1994.0,1993.9,1.01084674]
[1742664276798,2.47005519,1994.0,1993.9,1.01084674]
[1742664276980,1.46677519,1994.0,1993.9,1.01084674]
[1742664278279,1.3867,1994.0,1993.9,1.69614674]
[1742664278484,1.46677681,1994.0,1993.9,1.69614674]
[1742664281187,0.08007681,1994.0,1993.9,1.69614674]
[1742664281388,1.358,1994.2,1994.1,1.00323]
[1742664281691,1.43807667,1994.2,1994.1,1.00323]
[1742664281990,2.44125667,1994.2,1994.1,1.00323]
[1742664282292,2.44125667,1994.2,1994.1,2.38463]
[1742664282588,3.13205667,1994.2,1994.1,1.00323]
[1742664282889,1.00326,1994.1,1994.0,1.00325]
[1742664283089,1.44437667,1994.1,1994.0,1.00325]
[1742664283591,1.44437667,1994.1,1994.0,2.30085]
[1742664283890,2.44760667,1994.1,1994.0,2.30085]
[1742664284590,1.44437667,1994.1,1994.0,2.30085]
[1742664285493,1.44437667,1994.1,1994.0,2.98365]
[1742664286598,1.44437723,1994.1,1994.0,2.98365]
[1742664288193,1.3643,1994.1,1994.0,2.98365]
[1742664288387,1.44437725,1994.1,1994.0,2.98365]
[1742664289101,2.44760725,1994.1,1994.0,2.98365]
[1742664289395,2.44760725,1994.1,1994.0,2.30085]
[1742664289584,1.00328,1994.0,1993.9,0.00753674]
[1742664289783,2.47715725,1994.0,1993.9,1.01087674]
[1742664290496,2.47715725,1994.0,1993.9,1.35573674]
[1742664291105,2.47715725,1994.0,1993.9,2.35907674]
[1742664291495,2.39708,1994.0,1993.9,2.35907674]
[1742664291794,2.47715933,1994.0,1993.9,2.35907674]
[1742664292288,2.47715933,1994.0,1993.9,1.35573674]
[1742664293200,2.39708,1994.0,1993.9,1.35573674]
[1742664293486,2.47715947,1994.0,1993.9,1.35573674]
[1742664294582,2.47715947,1994.0,1993.9,0.00753674]
[1742664298601,1.08335947,1994.0,1993.9,0.00753674]
[1742664298899,6.90105947,1994.0,1993.9,0.00753674]
[1742664299692,6.90105947,1994.0,1993.5,0.6963]
[1742664299693,1.00349,1993.6,1993.5,0.6963]
[1742664299897,1.08356947,1993.6,1993.5,2.0004]
[1742664300087,1.00359,1993.4,1993.3,3.2078]
[1742664300284,1.08367266,1993.4,1993.3,4.2114]
[1742664301090,1.00364,1993.3,1993.2,0.66053674]
[1742664301297,0.08008266,1993.3,1993.2,1.66422674]
[1742664301501,1.37438266,1993.3,1993.2,1.66422674]
[1742664301800,2.37802266,1993.3,1993.2,3.04112674]
[1742664302292,2.37802266,1993.3,1993.2,2.03743674]
[1742664302598,2.37802266,1993.3,1993.2,3.04112674]
[1742664302800,2.37802266,1993.3,1993.2,2.03743674]
[1742664303098,2.37802566,1993.3,1993.2,0.00753674]
[1742664303291,5.58602566,1993.3,1993.2,0.00753674]
[1742664303493,6.22242566,1993.3,1993.2,0.00753674]
[1742664304699,6.22242815,1993.3,1993.2,0.00753674]
[1742664305197,0.08008815,1993.3,1993.2,1.01122674]
[1742664305396,1.08372815,1993.3,1993.2,2.63163674]
[1742664306295,2.42782815,1993.3,1993.2,1.98873674]
[1742664306495,2.42782815,1993.3,1993.2,1.30843674]
[1742664306795,3.10042815,1993.3,1993.2,1.30843674]
[1742664309198,3.10042815,1993.3,1993.2,0.00753674]
[1742664310011,3.10042939,1993.3,1993.2,0.00753674]
[1742664311611,3.10042908,1993.3,1993.2,0.00753674]
[1742664314403,6.31242908,1993.3,1993.2,0.00753674]
[1742664315615,7.81794908,1993.3,1992.8,0.6575]
[1742664315912,1.00384,1992.9,1992.8,1.3206]
[1742664316210,1.08392908,1992.9,1992.8,1.3206]
[1742664317011,2.39532908,1992.9,1992.8,3.68729]
[1742664317417,2.39532908,1992.9,1992.8,2.6834]
[1742664321110,2.39532908,1992.9,1992.8,3.68729]
[1742664322003,2.39532908,1992.9,1992.8,2.6834]
[1742664323806,1.39148908,1992.9,1992.8,3.68729]
[1742664324317,2.39532908,1992.9,1992.8,3.68729]
[1742664324518,1.08392908,1992.9,1992.8,1.00389]
[1742664324819,0.08008908,1992.9,1992.8,1.00389]
[1742664325131,1.00384,1993.0,1992.9,1.00384]
[1742664325319,1.00385,1992.9,1992.7,6.42433674]
[1742664325620,0.0800905,1992.8,1992.7,7.42827674]
[1742664326713,1.00389,1992.8,1992.7,7.42827674]
[1742664326915,1.0839805,1992.8,1992.7,7.42827674]
[1742664327321,0.0800905,1992.8,1992.7,7.42827674]
[1742664327514,1.00388,1992.9,1992.8,1.00389]
[1742664327714,1.08397047,1992.9,1992.8,1.00389]
[1742664328419,1.00389,1992.8,1992.7,7.42823674]
[1742664328619,1.08398047,1992.8,1992.7,7.42823674]
[1742664328807,1.0839805,1992.8,1992.7,7.42823674]
[1742664332021,0.0800905,1992.8,1992.7,7.42823674]
[1742664332420,1.00389,1992.9,1992.8,1.00386]
[1742664332621,1.0839805,1992.9,1992.8,1.00386]
[1742664334018,1.00389,1992.9,1992.8,1.00386]
[1742664334734,1.00383,1993.0,1992.8,1.00386]
[1742664335231,1.00383,1993.0,1992.9,1.00384]
[1742664335734,3.209,1993.2,1992.8,2.50968]
[1742664335925,1.00375,1993.1,1993.0,1.00375]
[1742664338626,1.0038,1993.0,1992.9,1.00381]
[1742664341628,1.00387,1992.9,1992.8,1.00385]
[1742664345540,1.00387,1992.9,1992.8,4.21165]
[1742664346333,1.00387,1992.9,1992.8,1.00385]
[1742664346740,1.00387,1992.9,1992.8,4.21165]
[1742664347041,1.00387,1992.9,1992.8,5.68653359]
[1742664347336,1.00387,1992.9,1992.8,8.38287741]
[1742664347639,1.00387,1992.9,1992.8,8.37604344]
[1742664348339,1.00387,1992.9,1992.8,7.21299733]
[1742664348637,1.00387,1992.9,1992.8,6.44437145]
[1742664348839,1.00387,1992.9,1992.8,8.37463833]
[1742664349342,1.00387,1992.9,1992.8,7.21244821]
[1742664349841,1.00387,1992.9,1992.8,4.00464821]
[1742664350146,1.00387,1992.9,1992.8,2.30613456]
[1742664350439,1.00387,1992.9,1992.8,5.51340004]
[1742664350634,1.00387,1992.9,1992.8,4.93241151]
[1742664350835,1.00387,1992.9,1992.8,4.21165]
[1742664351039,1.00387,1992.9,1992.8,1.00385]
[1742664351430,1.00387,1992.9,1992.8,4.21165]
[1742664351838,1.00382,1993.0,1992.9,1.00379]
[1742664353740,1.00384,1992.9,1992.8,4.21165]
[1742664354746,1.00383,1993.0,1992.9,1.00381]
[1742664361148,1.00384,1992.9,1992.8,4.21165]
[1742664362043,1.00383,1993.0,1992.9,1.00382]
[1742664364555,1.00383,1993.0,1992.9,3.60152]
[1742664365053,2.27244,1993.1,1993.0,1.00379]
[1742664365243,2.27244,1993.1,1993.0,2.31289]
[1742664365444,2.27244,1993.1,1993.0,1.3091]
[1742664366347,1.00371,1993.2,1993.1,1.00371]
[1742664366544,2.51645674,1993.5,1993.1,1.00371]
[1742664366545,0.00753674,1993.5,1993.4,1.00359]
[1742664367057,0.08757934,1993.5,1993.4,1.00359]